Cogmind - Beta 16 @@@ ROGUE MODE // 2025.12.01 @ 18:15:46 Player: Triffids Result: Self-destructed Performance ------------- Evolutions (2) 1000 Regions Visited (3) 600 Robots Destroyed (37) 185 Value Destroyed (1122) 1122 Prototype IDs (2) 40 Alien Tech Used (0) 0 Bonus (0) 0 TOTAL SCORE: 2947 Bonus ------- None Cogmind --------- Core Integrity 427/550 Matter 300/300 Energy 271/275 System Corruption 0% Temperature Cool (0) Movement Walking (95) Location -8/Materials Parts ------- > --- POWER (1) -------- Deuterium Engine > --- PROPULSION (4) --- Carbon-fiber Leg VSS Leg VSS Leg > --- UTILITY (4) ------ Advanced Heat Sink Medium Storage Unit Improved Sensor Array Hardened Medium Armor Plating > --- WEAPON (2) ------- Field Laser Minigun > --- INVENTORY (10) --- Deuterium Engine Carbon-fiber Leg Improved Heat Sink Sensor Array Beam Rifle Beam Rifle Field Laser Improved Light Cannon Mini Grenade Launcher Mining Laser Peak State ------------ > --- POWER ------------ Deuterium Engine > --- PROPULSION ------- Carbon-fiber Leg Carbon-fiber Leg VSS Leg VSS Leg > --- UTILITY ---------- Advanced Heat Sink Medium Storage Unit Improved Sensor Array Hardened Medium Armor Plating > --- WEAPON ----------- Field Laser Minigun > --- INVENTORY -------- Deuterium Engine Carbon-fiber Leg Improved Heat Sink Sensor Array Beam Rifle Beam Rifle Field Laser Improved Light Cannon Mini Grenade Launcher Mining Laser [Rating: 35] Favorites ----------- Power Ion Engine Engine Ion Engine Power Core Light Nuclear Core Propulsion Carbon-fiber Leg Leg Carbon-fiber Leg Wheel Wheel Utility Hardened Medium Armor Plating Device Advanced Heat Sink Storage Medium Storage Unit Processor Signal Interpreter Protection Hardened Medium Armor Plating Weapon Improved Light Cannon Energy Gun Beam Rifle Ballistic Gun Minigun Ballistic Cannon Improved Light Cannon Special Weapon Mining Laser Build | -11 -10 -9 -8 ------- Run | Yrd Mat Mat Mat Slots Evolved 4 | . . 2 2 Power . | . . . . Propulsion 2 | . . . 2 Utility 2 | . . 2 . Weapon . | . . . . Parts Attached 41 | 8 4 10 19 Power 5 | 1 . . 4 Engine 4 | 1 . . 3 Core 1 | . . . 1 Reactor . | . . . . Propulsion 15 | 3 . 3 9 Treads . | . . . . Leg 12 | . . 3 9 Wheel 3 | 3 . . . Hover . | . . . . Flight . | . . . . Utility 11 | 2 2 3 4 Device 5 | 1 1 1 2 Storage 2 | 1 . 1 . Processor 1 | . 1 . . Hackware . | . . . . Protection 3 | . . 1 2 Artifact . | . . . . Weapon 10 | 2 2 4 2 Energy Gun 4 | 1 . 2 1 Energy Cannon . | . . . . Ballistic Gun 2 | 1 . . 1 Ballistic Cannon 3 | . 1 2 . Launcher . | . . . . Special Weapon 1 | . 1 . . Impact Weapon . | . . . . Slashing Weapon . | . . . . Piercing Weapon . | . . . . Special Melee Weapon . | . . . . Unidentified Prototypes . | . . . . Parts Lost 9 | . . 1 8 Power 2 | . . . 2 Propulsion 4 | . . . 4 Utility 1 | . . . 1 Weapon 2 | . . 1 1 Highest Loss Streak 4 | . . 1 4 To Critical Strikes . | . . . . Average Backups 7 | 4 7 7 8 Power . | . 1 1 . Propulsion 1 | 2 2 2 . Utility 1 | . 1 1 2 Weapon 3 | 1 2 2 4 Tool/Special . | . . . . Unused Backups 16 | 1 3 4 8 Power 3 | . . . 3 Propulsion 4 | . 2 2 . Utility 3 | . 1 . 2 Weapon 6 | 1 . 2 3 Tool/Special . | . . . . Average Slot Usage (%) 96 | . 100 99 94 Engine 9 | . 14 11 8 Leg 25 | . . 21 31 Wheel 3 | . 28 . . Device 12 | . 14 11 13 Storage 10 | . 14 11 9 Processor 4 | . . 11 1 Protection 10 | . . 10 11 Energy Gun 9 | . 14 10 7 Ballistic Gun 3 | . 9 . 3 Ballistic Cannon 7 | . 4 11 6 Peak Build Rating 35 | 8 8 18 35 Average Rating 20 | 5 7 16 28 On Entrance 8 | . 8 7 18 Avg Prop Armor Cover (%) 9 | 13 . . 3 Naked Turns . | . . . . Heaviest Build 39 | 13 15 31 39 Greatest Support 60 | 20 20 30 60 Greatest Overweight (x) 1 | . . 1 1 Average Overweight (x) . | . . . . Largest Inventory Capacity 10 | 8 8 10 10 Average Capacity 8 | 6 8 8 10 Most Carried 10 | 8 8 8 10 Average Carried 8 | 5 7 7 8 Final Capacity 10 | 8 8 10 10 Final Carried 10 | 8 8 8 10 Class Distribution -------------------- 89% | Mutant 10% | Scavenger-Mutant Dominant Class ---------------- Mutant | -10/Materials Mutant | -9/Materials Mutant | -8/Materials Resources | -11 -10 -9 -8 ----------- Run | Yrd Mat Mat Mat Matter Collected 1251 | 301 16 284 650 Remotely . | . . . . Salvage Created 1166 | 200 16 273 677 Parts 69 | 19 1 16 33 Haulers Intercepted . | . . . . Recyclers Shooed 2 | 2 . . . Parts Field Recycled . | . . . . Retrieved Matter . | . . . . Parts Self-Destructed . | . . . . Prevented . | . . . . Parts Restored . | . . . . Kills | -11 -10 -9 -8 ------- Run | Yrd Mat Mat Mat Combat Hostiles Destroyed 24 | . . 5 19 Guns 12 | . . 1 11 Cannons 12 | . . 4 8 Classes Destroyed 9 | 2 1 2 4 Worker 1 | . . . 1 Builder 2 | . 1 . 1 Tunneler 5 | 5 . . . Recycler 2 | 1 . . 1 Watcher 3 | . . 2 1 Swarmer 4 | . . . 4 Grunt 12 | . . . 12 Sentry 6 | . . 5 1 Hunter 2 | . . . 2 Best Kill Streak 7 | 3 1 2 7 Combat Bots Only 6 | . . 2 6 Max Kills in Single Turn 1 | 1 1 1 1 Gunslinging . | . . . . Exploded . | . . . . Melee . | . . . . Uniques/NPCs Destroyed . | . . . . Combat | -11 -10 -9 -8 -------- Run | Yrd Mat Mat Mat Hostile Shots Fired 223 | . . 30 193 Missed 62 | . . 8 54 Hits 161 | . . 22 139 Projectile 161 | . . 22 139 Critical Strikes 2 | . . 1 1 Damage Taken 2104 | . . 319 1785 Core 152 | . . 29 123 Absorbed by Shields . | . . . . Core Remaining (%) 97 | 100 100 92 . Volleys Fired 144 | 21 8 26 89 Largest 2 | 2 2 2 2 Hottest 100 | 60 100 100 89 Shots Fired 281 | 41 13 51 176 Gun 170 | 41 9 23 97 Cannon 108 | . 2 27 79 Launcher . | . . . . Special 3 | . 2 1 . Kinetic 169 | 21 6 27 115 Thermal 89 | 20 7 1 61 Explosive . | . . . . Electromagnetic 23 | . . 23 . Robot Hit Streak 12 | 10 2 8 12 Robot Miss Streak 6 | 2 1 3 6 Penetration Max . | . . . . Secondary Targets 1 | . . . 1 Max Gunslinging Chain 1 | . . . 1 Shots Hit Robots 175 | 26 6 35 108 Core Hits 65 | 9 2 12 42 Critical Kills . | . . . . Critical Parts Destroyed 1 | 1 . . . Critical Strikes 9 | 1 . 1 7 Burn 5 | . . . 5 Destroy 1 | 1 . . . Blast 3 | . . 1 2 Melee Attacks . | . . . . Impact . | . . . . Slashing . | . . . . Piercing . | . . . . Sneak Attacks . | . . . . Combat Hostiles . | . . . . Follow-up Attacks . | . . . . Damage Inflicted 2942 | 258 65 606 2013 Guns 1522 | 258 47 199 1018 Cannons 1373 | . 18 360 995 Explosions 47 | . . 47 . Melee . | . . . . Ramming . | . . . . Kinetic 1857 | 112 42 360 1343 Thermal 886 | 146 23 47 670 Explosive . | . . . . Electromagnetic 199 | . . 199 . Impact . | . . . . Slashing . | . . . . Piercing . | . . . . Highest Corruption . | . . . . Average Corruption . | . . . . Corruption Purged . | . . . . Corruption Blocked . | . . . . Overload Shots . | . . . . Overflow Damage 18 | . . 2 16 Projectiles 18 | . . 2 16 Explosions . | . . . . Melee . | . . . . Knockbacks 21 | . . 2 19 Impact . | . . . . Kinetic 17 | . . 2 15 Secondary 4 | . . . 4 Self-Inflicted Damage . | . . . . Shots . | . . . . Rammed . | . . . . Targets Rammed . | . . . . Kicked . | . . . . Crushed . | . . . . Highest Temperature 369 | 40 40 171 369 Average Temperature 55 | 22 18 49 77 Received Heat Transfer 693 | . . 117 576 Effects 3 | . . . 3 Energy Bleed 1 | . . . 1 Interference 2 | . . . 2 Siege Activations . | . . . . Martial Activations . | . . . . Shielding Activations . | . . . . Robots Disrupted . | . . . . Combat Hostiles . | . . . . Robots Corrupted . | . . . . Combat Hostiles . | . . . . Parts Fried 1 | . . 1 . Impact Corruptions . | . . . . Robots Melted . | . . . . Combat Hostiles . | . . . . Parts Melted 3 | . . . 3 Heat Transferred 2312 | 325 50 50 1887 Parts Sabotaged . | . . . . Parts Stolen . | . . . . Parts Stripped . | . . . . Power Chain Reactions 1 | . . 1 . Alert | -11 -10 -9 -8 ------- Run | Yrd Mat Mat Mat Maximum Alert Level . | . . . . Low Security (%) 100 | 100 100 100 100 Level 1 . | . . . . Level 2 . | . . . . Level 3 . | . . . . Level 4 . | . . . . Level 5 . | . . . . High Security . | . . . . Max Security . | . . . . Peak Influence 140 | 10 15 51 140 Initial 5 | . . . 5 Average 37 | 1 2 17 62 Influence Increases 766 | 30 25 187 524 Destroy 0b10 Robot/C 480 | . . 100 380 Destroy 0b10 Robot/NC 65 | 30 5 10 20 Destroy Leader 136 | . . 54 82 Successful Hack 35 | . 5 6 24 Disable Machine 30 | . 15 15 . Destroy Structure 5 | . . 2 3 Lose Combat Pursuer 15 | . . . 15 Influence Decreases 648 | 30 25 174 419 Entered New Map 8 | . . . 8 Time Decay 550 | 30 25 164 331 Lost Part 90 | . . 10 80 Squads Dispatched 4 | . . . 4 Investigation . | . . . . Extermination . | . . . . Reinforcement 2 | . . . 2 Assault . | . . . . Garrison 2 | . . . 2 Intercept . | . . . . Searches Triggered . | . . . . Construction Impeded . | . . . . Haulers Reinforced . | . . . . Active Scanning Responses . | . . . . Cargo Convoy Interrupts . | . . . . Stealth | -11 -10 -9 -8 --------- Run | Yrd Mat Mat Mat Distress Signals 2 | . . . 2 Communications Jammed . | . . . . Distress Signals . | . . . . Times Spotted 37 | . 2 7 28 Peak Tracking Total 6 | . 2 2 6 Tactical Retreats 1 | . . . 1 Traps | -11 -10 -9 -8 ------- Run | Yrd Mat Mat Mat Traps Triggered . | . . . . Indirectly . | . . . . Trap Hack Attempts . | . . . . Triggered . | . . . . Disarmed . | . . . . Reprogrammed . | . . . . Reused . | . . . . Traps Extracted . | . . . . Installed . | . . . . Triggered . | . . . . Machines | -11 -10 -9 -8 ---------- Run | Yrd Mat Mat Mat Machines Disabled 2 | . 1 1 . Max in Single Turn 1 | . 1 1 . Garrison Access 1 | . . . 1 Machines Repaired . | . . . . Machines Dismantled . | . . . . Machines Sabotaged . | . . . . Overloaded Fab Kills . | . . . . Hacking | -11 -10 -9 -8 --------- Run | Yrd Mat Mat Mat Machines Accessed 10 | . 1 3 6 Terminals 5 | . 1 2 2 Fabricators . | . . . . Repair Stations 1 | . . . 1 Recycling Units . | . . . . Scanalyzers 3 | . . 1 2 Garrison Access 1 | . . . 1 Total Hacks 34 | . 3 18 13 Successful 16 | . 1 8 7 Failed 17 | . 2 10 5 Catastrophic 1 | . . . 1 Database Lockouts 1 | . . . 1 Manual 10 | . 1 5 4 Terminals 21 | . 3 11 7 Fabricators . | . . . . Repair Stations 1 | . . . 1 Recycling Units . | . . . . Scanalyzers 9 | . . 7 2 Garrison Access 3 | . . . 3 Terminal Hacks 5 | . . 2 3 Prototype ID Bank 1 | . . 1 . Terminal Index 1 | . . 1 . Locate Traps 1 | . . . 1 Hauler Manifests 1 | . . . 1 Zone Layout 1 | . . . 1 Fabricator Hacks . | . . . . Repair Station Hacks . | . . . . Recycling Unit Hacks . | . . . . Scanalyzer 6 | . . 5 1 Insert Component 2 | . . 2 . Analyze 2 | . . 2 . Retrieve Study 2 | . . 1 1 Garrison Access Hacks 1 | . . . 1 Seal Access 1 | . . . 1 Unauthorized Hacks 4 | . 1 1 2 Terminals 4 | . 1 1 2 Botnet 4 | . 1 1 2 Fabricators . | . . . . Repair Stations . | . . . . Recycling Units . | . . . . Scanalyzers . | . . . . Garrison Access . | . . . . Data Cores Recovered . | . . . . Used . | . . . . Hacking Detections 7 | . 1 3 3 Full Trace Events . | . . . . Feedback Events . | . . . . Feedback Blocked . | . . . . Robot Schematics Acquired . | . . . . Robots Built . | . . . . Authchips . | . . . . Time . | . . . . Total Robot Build Rating . | . . . . Part Schematics Acquired 2 | . . 2 . Parts Built . | . . . . Authchips . | . . . . Time . | . . . . Total Part Build Rating . | . . . . Part Studies Acquired 1 | . . . 1 Parts Repaired . | . . . . Time . | . . . . Parts Recycled . | . . . . Recycled Matter . | . . . . Retrieved Matter . | . . . . Retrieved Components . | . . . . Parts Scanalyzed 2 | . . 2 . Part Schematics Acquired 2 | . . 2 . Parts Damaged . | . . . . Bothacking | -11 -10 -9 -8 ------------ Run | Yrd Mat Mat Mat Used RIF Installer . | . . . . Robots Hacked . | . . . . Non-combat . | . . . . Combat . | . . . . Robot Hacks Applied . | . . . . Relay Couplers Released . | . . . . Fabnet Peak Effective % . | . . . . Robots Rewired . | . . . . Allies Hacked . | . . . . Hacks Repelled . | . . . . Allies | -11 -10 -9 -8 -------- Run | Yrd Mat Mat Mat Total Allies . | . . . . Largest Group . | . . . . Highest-Rated Group . | . . . . Highest-Rated Ally . | . . . . Total Orders . | . . . . Ally Attacks . | . . . . Total Damage . | . . . . Kills . | . . . . Allies Corrupted . | . . . . Allies Melted . | . . . . Intel | -11 -10 -9 -8 ------- Run | Yrd Mat Mat Mat Active Infowar (turns) 1125 | 11 128 472 514 Sensors 986 | . . 472 514 Seismic 144 | 11 128 5 . Robot Analysis Total . | . . . . Derelict Logs Recovered . | . . . . Drone Launches . | . . . . Drone Recoveries . | . . . . Exploration | -11 -10 -9 -8 ------------- Run | Yrd Mat Mat Mat Turns Passed 1570 | 161 131 474 804 Spaces Moved 940 | 109 112 288 431 Core 23 | 23 . . . Treads . | . . . . Legs 712 | . . 281 431 Wheels 205 | 86 112 7 . Hover . | . . . . Flight . | . . . . Fastest Speed 50 | 50 80 80 95 Average Speed 105 | 73 80 125 107 Slowest Speed 190 | 80 80 190 175 Overloaded Moves . | . . . . Propulsion Burnouts . | . . . . Robots Hopped . | . . . . Potential Cave-ins . | . . . . Cave-ins Triggered . | . . . . Exploration Rate (%) 24 | 6 25 30 36 Regions Visited 3 Branch Regions . Pre-discovered Areas . | . . . . Known Exits Taken 2 | . 1 1 . Unknown Exits Taken 1 | 1 . . . Scrap Searched . | . . . . Spaces Dug . | . . . . Terrain Destroyed 2 | . . . 2 Melee . | . . . . Projectile 2 | . . . 2 AOE . | . . . . Terrain Rammed . | . . . . Walls Destroyed . | . . . . Machines Disabled . | . . . . Actions | -11 -10 -9 -8 --------- Run | Yrd Mat Mat Mat Total 1245 | 154 138 348 605 Wait 54 | 4 4 5 41 Move 937 | 108 111 287 431 Hop . | . . . . Pick Up 33 | 11 4 9 9 Fast Attach 11 | 5 1 . 5 Attach 10 | 2 . 3 5 Detach . | . . . . Swap 28 | 1 4 10 13 Drop 28 | 2 6 8 12 Fire 144 | 21 8 26 89 Melee . | . . . . Ram . | . . . . Kick . | . . . . Crush . | . . . . Escape Stasis . | . . . . Rewire . | . . . . Trap . | . . . . Miscellaneous . | . . . . Route ------- -11/Scrapyard -10/Materials -9/Materials (discovered 2 exits: *Mat / *Sto) -8/Materials (discovered 1 exit: [*Fac]) History --------- Turn | Location | Event 6 | -11/Scrapyard | Discovered new exit (range 15) 162 | -11/Scrapyard | Entered Materials 282 | -10/Materials | Discovered new exit (range 12) 293 | -10/Materials | Identified exit to Materials 293 | -10/Materials | Entered another Materials area 293 | -9/Materials | Evolved 2 slots: Utility x2 339 | -9/Materials | Build established: Mutant 478 | -9/Materials | Discovered new exit (range 15) 540 | -9/Materials | Identified exit to Storage 703 | -9/Materials | Discovered new exit (range 15) 763 | -9/Materials | Identified exit to Materials 767 | -9/Materials | Entered another Materials area 767 | -8/Materials | Evolved 2 slots: Propulsion x2 874 | -8/Materials | Garrison activated, responded to threat 1007 | -8/Materials | Lost 4 parts (2n1u1w) 1535 | -8/Materials | Central database locked down 1544 | -8/Materials | Discovered new exit (range 16) 1571 | -8/Materials | Self-destructed Last Messages --------------- 01499_ K-01 Serf collects debris. 01503_ G-47 Trooper destroyed. 01506_ K-01 Serf collects debris. 01507_ Acquired 85 matter. 01508_ Acquired 1 matter. 01509_ K-01 Serf collects debris. 01535_ Connecting with Scanalyzer... 01535_ ALERT: Central database lockdown, local access denied. 01544_ EXIT=FOUND 01545_ Connecting with Terminal... >>Trojan(Botnet) Trojan loaded successfully. Testing... Terminal linked with 1 system. Awaiting botnet instructions. >>Layout(Zone) Retrieving Zone 2Q layout... Downloaded map data. 01560_ Connecting with Repair Station... Map ----- +----------------------------------------------------+ | ??????# = !#%*= # #??# # ![ # | | ??????#####+####!=!! / #??# # ! # | | ?????????# =[!=+%! *=# #### # ! # | | ?????????# %######### + [# | | ?????????# # #?# #### # # | | ?????????# # ####+##### # !# | | ?????????# # # # ######## | | ?????????# # # ! *# # # | | ?#########[ # # # / T # | | % # # """ # # /# | | ##########%" + # """"" # # ! # | | #??????#" # # """"" #*# # | | #??????# + # """"" #?# = # | | " #??????# # # """ #%##+##### | | " #??????# # # #= = #???? | | " #??????# # ##########*[[ #???? | | #??????# ################ ? #???? | | #??????# # # ## #???? | | #??????# # "" # """" ## #???? | | ###??????# + ""S # ""R" ## #???? | | ########## # "" # "" " ## #???? | | ## # # ## #???? | | ## ######## ## #???? | | # ##########+#### #???? | | # # #???? | | + T @< # #???? | | """"" # # #???? | | """"" # ########+###### #???? | | """"" #######?# ! # #???? | | #???????# # #???? | | #########???????# """ """ # #???? | | ????????????????# """ """ ######???? | | ????????????????# """ """ #????????? | | ????????????????# #????????? | | ????????????????# #????????? | | ????????????????#############????????? | | | | | | | | | | | | | | | | | | | | | | | | | | | | | +----------------------------------------------------+ Best States ------------- Heat Dissipation 50 Energy Generation 14 Energy Capacity 275 Matter Stores 300 Matter Capacity 300 Sight Range 16 Robot Scan Range 15 Terrain Scan Density 10 Armor Coverage 450 Evasion (%) 56 Item Schematics ----------------- Carbon-fiber Leg | -9/Materials | Scanalyzed Hrd. Medium Armor Plating | -9/Materials | Scanalyzed Robot Schematics ------------------ None Fabricated ------------ Nothing Repaired ---------- Nothing Studied --------- Carbon-fiber Leg | -8/Materials | Hacked Alien Tech Used ----------------- None Achievements -------------- Sprinter Challenges ------------ None Game ------ Seed AssembledPhasingTurbovents Manual? 0 Play Time 00:30:02 Cumulative 244.9 hours Start 2025.11.29 @ 23:14:10 End 2025.12.01 @ 18:15:46 Sessions 3 Manual Loads 0 Difficulty Rogue Special Mode None Game No. 461 Rogue 461 Adventurer 0 Explorer 0 Win Type - Total 1 Types 1/0/0/0/0/0/0/0/0/0 Lore% 30 Gallery% 47 Achievement% 26 Wizard Run 0 Options --------- Layout 1 ASCII 0 Keyboard 1 Movement Vi Keybinds 0 Fullscreen 0 Font 20/Smallcaps Map View 59x39 Zoom Use 0% Tactical HUD 1 Map Filters NONE Filters NONE Steam 1 RUN: d190429e-d53c-49e3-9539-f64ffad8e86b